[Event "Titled Tuesday Blitz June 13 Early 2023"]
[White "Kubicka, Anna"]
[Black "Ardila, Oscar Humberto"]
[WhiteFideId "1152254"]
[BlackFideId "4404742"]
[WhiteElo "2144"]
[BlackElo "1912"]
[Result "1-0"]
[Round "5"]
[TimeControl "180+2"]
[Date "2023.06.13"]
[WhiteClock "0:00:05"]
[BlackClock "0:00:00"]
[Board "144"]

1. e4 {[%clk 0:03:00]}  e5 {[%clk 0:02:59]} 2. Nf3 {[%clk 0:03:00]}  Nf6 {[%clk 0:03:00]} 3. Nxe5 {[%clk 0:02:59]}  d6 {[%clk 0:03:00]} 4. Nf3 {[%clk 0:02:58]}  Nxe4 {[%clk 0:03:01]} 5. Nc3 {[%clk 0:02:59]}  Nxc3 {[%clk 0:03:01]} 6. dxc3 {[%clk 0:03:00]}  Be7 {[%clk 0:03:01]} 7. Bd3 {[%clk 0:03:00]}  O-O {[%clk 0:03:02]} 8. Be3 {[%clk 0:03:00]}  Nd7 {[%clk 0:03:03]} 9. Qd2 {[%clk 0:03:01]}  Nf6 {[%clk 0:03:03]} 10. O-O-O {[%clk 0:03:00]}  c5 {[%clk 0:03:04]} 11. h3 {[%clk 0:03:00]}  b5 {[%clk 0:03:04]} 12. g4 {[%clk 0:02:58]}  Qa5 {[%clk 0:03:02]} 13. Kb1 {[%clk 0:02:57]}  Be6 {[%clk 0:03:02]} 14. c4 {[%clk 0:02:54]}  Qa6 {[%clk 0:02:43]} 15. Ng5 {[%clk 0:02:41]}  Bxc4 {[%clk 0:02:41]} 16. Bxc4 {[%clk 0:02:38]}  bxc4 {[%clk 0:02:41]} 17. Qc3 {[%clk 0:02:28]}  d5 {[%clk 0:02:39]} 18. Bf4 {[%clk 0:02:13]}  d4 {[%clk 0:02:33]} 19. Qf3 {[%clk 0:02:04]}  Rad8 {[%clk 0:02:27]} 20. Rhe1 {[%clk 0:02:02]}  Bd6 {[%clk 0:02:17]} 21. Ne4 {[%clk 0:01:48]}  Nxe4 {[%clk 0:02:14]} 22. Rxe4 {[%clk 0:01:47]}  Qb5 {[%clk 0:01:53]} 23. Bxd6 {[%clk 0:01:28]}  Rxd6 {[%clk 0:01:51]} 24. Ka1 {[%clk 0:01:15]}  Rb6 {[%clk 0:01:49]} 25. b3 {[%clk 0:01:13]}  c3 {[%clk 0:01:37]} 26. Qf4 {[%clk 0:01:04]}  Ra6 {[%clk 0:01:31]} 27. Qc1 {[%clk 0:00:58]}  Qa5 {[%clk 0:01:29]} 28. a4 {[%clk 0:00:54]}  Qb4 {[%clk 0:01:28]} 29. Ka2 {[%clk 0:00:52]}  Rb8 {[%clk 0:01:16]} 30. Qa3 {[%clk 0:00:49]}  Qb6 {[%clk 0:01:15]} 31. Rde1 {[%clk 0:00:47]}  h6 {[%clk 0:01:15]} 32. Re8+ {[%clk 0:00:40]}  Rxe8 {[%clk 0:01:15]} 33. Rxe8+ {[%clk 0:00:41]}  Kh7 {[%clk 0:01:15]} 34. Rc8 {[%clk 0:00:40]}  Qg6 {[%clk 0:01:13]} 35. Qc1 {[%clk 0:00:36]}  Ra5 {[%clk 0:01:10]} 36. Kb1 {[%clk 0:00:34]}  d3 {[%clk 0:01:05]} 37. cxd3 {[%clk 0:00:32]}  Qe6 {[%clk 0:01:01]} 38. Qxc3 {[%clk 0:00:28]}  Qxc8 {[%clk 0:00:58]} 39. Qxa5 {[%clk 0:00:28]}  Qd7 {[%clk 0:00:49]} 40. Qxc5 {[%clk 0:00:27]}  g6 {[%clk 0:00:47]} 41. Qc4 {[%clk 0:00:25]}  Kg7 {[%clk 0:00:44]} 42. f4 {[%clk 0:00:25]}  Qd6 {[%clk 0:00:38]} 43. Kb2 {[%clk 0:00:22]}  Qb6 {[%clk 0:00:36]} 44. Kc3 {[%clk 0:00:20]}  Qb7 {[%clk 0:00:24]} 45. Qd4+ {[%clk 0:00:15]}  Kh7 {[%clk 0:00:24]} 46. Qc4 {[%clk 0:00:14]}  Kg7 {[%clk 0:00:23]} 47. b4 {[%clk 0:00:14]}  Kh7 {[%clk 0:00:23]} 48. b5 {[%clk 0:00:14]}  Kg7 {[%clk 0:00:17]} 49. Qd4+ {[%clk 0:00:14]}  Kh7 {[%clk 0:00:16]} 50. Qf6 {[%clk 0:00:15]}  Qc7+ {[%clk 0:00:16]} 51. Kb3 {[%clk 0:00:14]}  Kg8 {[%clk 0:00:15]} 52. Qd4 {[%clk 0:00:13]}  Qc1 {[%clk 0:00:14]} 53. Qxa7 {[%clk 0:00:11]}  Qb1+ {[%clk 0:00:13]} 54. Kc4 {[%clk 0:00:11]}  Qc2+ {[%clk 0:00:13]} 55. Kd4 {[%clk 0:00:10]}  Qb2+ {[%clk 0:00:13]} 56. Kd5 {[%clk 0:00:09]}  Qb3+ {[%clk 0:00:13]} 57. Kc6 {[%clk 0:00:09]}  Qxd3 {[%clk 0:00:13]} 58. Kb7 {[%clk 0:00:09]}  Qxh3 {[%clk 0:00:11]} 59. Qb8+ {[%clk 0:00:08]}  Kh7 {[%clk 0:00:10]} 60. Qc7 {[%clk 0:00:08]}  Kg7 {[%clk 0:00:10]} 61. Qe5+ {[%clk 0:00:08]}  Kg8 {[%clk 0:00:10]} 62. Qe8+ {[%clk 0:00:08]}  Kg7 {[%clk 0:00:10]} 63. Qe5+ {[%clk 0:00:09]}  Kg8 {[%clk 0:00:10]} 64. Qe8+ {[%clk 0:00:07]}  Kg7 {[%clk 0:00:10]} 65. Qd7 {[%clk 0:00:08]}  Qg2+ {[%clk 0:00:10]} 66. Ka7 {[%clk 0:00:07]}  Qf2+ {[%clk 0:00:09]} 67. b6 {[%clk 0:00:07]}  Qxf4 {[%clk 0:00:09]} 68. b7 {[%clk 0:00:07]}  Qe3+ {[%clk 0:00:08]} 69. Ka8 {[%clk 0:00:07]}  Qe4 {[%clk 0:00:05]} 70. a5 {[%clk 0:00:06]}  h5 {[%clk 0:00:04]} 71. gxh5 {[%clk 0:00:05]}  gxh5 {[%clk 0:00:05]} 72. a6 {[%clk 0:00:05]}  h4 {[%clk 0:00:05]} 73. a7 {[%clk 0:00:06]}  h3 {[%clk 0:00:04]} 74. Kb8 {[%clk 0:00:06]}  Qf4+ {[%clk 0:00:02]} 75. Qc7 {[%clk 0:00:06]}  Qxc7+ {[%clk 0:00:01]} 76. Kxc7 {[%clk 0:00:06]}  h2 {[%clk 0:00:02]} 77. b8=Q {[%clk 0:00:06]}  h1=Q {[%clk 0:00:02]} 78. a8=Q {[%clk 0:00:05]}  Qh2+ {[%clk 0:00:02]} 79. Kb7 {[%clk 0:00:05]}  Qg2+ {[%clk 0:00:03]} 80. Kb6 {[%clk 0:00:05]}  Qf2+ {[%clk 0:00:03]} 81. Kc6 {[%clk 0:00:05]}  Qf3+ {[%clk 0:00:03]} 82. Kd7 {[%clk 0:00:05]}  Qf5+ {[%clk 0:00:01]} 83. Ke8 {[%clk 0:00:05]}  Qe6+ {[%clk 0:00:02]} 84. Kd8 {[%clk 0:00:05]}  Qf6+ {[%clk 0:00:01]} 85. Kc8 {[%clk 0:00:05]}  Qe6+ {[%clk 0:00:01]} 86. Kb7 {[%clk 0:00:06]}  Qe7+ {[%clk 0:00:02]} 87. Qc7 {[%clk 0:00:05]}  Qe4+ {[%clk 0:00:02]} 88. Kb8 {[%clk 0:00:06]}  Qb4+ {[%clk 0:00:01]} 89. Qab7 {[%clk 0:00:06]}  Qf8+ {[%clk 0:00:00]} 90. Ka7 {[%clk 0:00:05]} 1-0


[Site "https://www.chess.com"]

[Event "Titled Tuesday Blitz June 13 Early 2023"]
[White "Vifleemskaia, Svetlana"]
[Black "gueraumasague"]
[WhiteFideId "4129490"]
[WhiteElo "1930"]
[BlackElo "2494"]
[Result "0-1"]
[Round "5"]
[TimeControl "180+2"]
[Date "2023.06.13"]
[WhiteClock "0:00:00"]
[BlackClock "0:00:05"]
[Board "145"]

1. d4 {[%clk 0:02:53]}  g6 {[%clk 0:03:00]} 2. c4 {[%clk 0:02:53]}  Bg7 {[%clk 0:03:01]} 3. e4 {[%clk 0:02:51]}  d6 {[%clk 0:02:59]} 4. Nc3 {[%clk 0:02:51]}  Nc6 {[%clk 0:02:59]} 5. d5 {[%clk 0:02:50]}  Nd4 {[%clk 0:02:57]} 6. Be3 {[%clk 0:02:46]}  c5 {[%clk 0:02:57]} 7. Nge2 {[%clk 0:02:45]}  Nxe2 {[%clk 0:02:55]} 8. Bxe2 {[%clk 0:02:45]}  Nf6 {[%clk 0:02:54]} 9. O-O {[%clk 0:02:40]}  O-O {[%clk 0:02:53]} 10. h3 {[%clk 0:02:38]}  e6 {[%clk 0:02:44]} 11. Qd2 {[%clk 0:02:35]}  exd5 {[%clk 0:02:40]} 12. cxd5 {[%clk 0:02:31]}  Re8 {[%clk 0:02:39]} 13. Bd3 {[%clk 0:02:31]}  a6 {[%clk 0:02:39]} 14. a4 {[%clk 0:02:30]}  Bd7 {[%clk 0:02:34]} 15. a5 {[%clk 0:02:27]}  b5 {[%clk 0:02:22]} 16. axb6 {[%clk 0:02:26]}  Qxb6 {[%clk 0:02:22]} 17. Ra2 {[%clk 0:02:23]}  Bb5 {[%clk 0:02:13]} 18. Rb1 {[%clk 0:02:21]}  Bxd3 {[%clk 0:02:03]} 19. Qxd3 {[%clk 0:02:21]}  a5 {[%clk 0:01:49]} 20. Ra4 {[%clk 0:01:54]}  Qb3 {[%clk 0:01:26]} 21. Ra3 {[%clk 0:01:50]}  Qb6 {[%clk 0:01:26]} 22. Ra4 {[%clk 0:01:48]}  Nd7 {[%clk 0:01:25]} 23. f4 {[%clk 0:01:45]}  Qb3 {[%clk 0:01:21]} 24. Ra3 {[%clk 0:01:44]}  Qb6 {[%clk 0:01:21]} 25. Ra4 {[%clk 0:01:36]}  Rab8 {[%clk 0:01:12]} 26. b3 {[%clk 0:01:28]}  Qc7 {[%clk 0:00:34]} 27. Nb5 {[%clk 0:01:17]}  Qb6 {[%clk 0:00:33]} 28. Nc3 {[%clk 0:01:15]}  Rb7 {[%clk 0:00:28]} 29. Kh1 {[%clk 0:01:03]}  Nf6 {[%clk 0:00:23]} 30. Qc4 {[%clk 0:00:51]}  Reb8 {[%clk 0:00:20]} 31. e5 {[%clk 0:00:47]}  Ne8 {[%clk 0:00:20]} 32. Ne4 {[%clk 0:00:42]}  dxe5 {[%clk 0:00:18]} 33. Bxc5 {[%clk 0:00:39]}  Qb5 {[%clk 0:00:18]} 34. d6 {[%clk 0:00:20]}  Qd7 {[%clk 0:00:07]} 35. Rxa5 {[%clk 0:00:15]}  exf4 {[%clk 0:00:07]} 36. b4 {[%clk 0:00:13]}  h6 {[%clk 0:00:07]} 37. Qd5 {[%clk 0:00:12]}  Rc8 {[%clk 0:00:05]} 38. Rf1 {[%clk 0:00:11]}  g5 {[%clk 0:00:04]} 39. Ra2 {[%clk 0:00:09]}  Kh8 {[%clk 0:00:05]} 40. Re2 {[%clk 0:00:09]}  Rcb8 {[%clk 0:00:03]} 41. Nd2 {[%clk 0:00:05]}  Nf6 {[%clk 0:00:04]} 42. Qc4 {[%clk 0:00:04]}  Nh5 {[%clk 0:00:05]} 43. Rf3 {[%clk 0:00:02]}  Ng3+ {[%clk 0:00:05]} 44. Kh2 {[%clk 0:00:02]}  Nxe2 {[%clk 0:00:05]} 45. Qxe2 {[%clk 0:00:03]}  Rxb4 {[%clk 0:00:05]} 46. Bxb4 {[%clk 0:00:03]}  Rxb4 {[%clk 0:00:06]} 47. Qd3 {[%clk 0:00:03]}  Rd4 {[%clk 0:00:06]} 48. Qa6 {[%clk 0:00:02]}  Rxd2 {[%clk 0:00:06]} 49. Qa8+ {[%clk 0:00:02]}  Kh7 {[%clk 0:00:05]} 50. Qe4+ {[%clk 0:00:03]}  f5 {[%clk 0:00:06]} 51. Qe7 {[%clk 0:00:00]}  Rxd6 {[%clk 0:00:05]} 0-1


[Site "https://www.chess.com"]

[Event "Titled Tuesday Blitz June 13 Early 2023"]
[White "Bruedigam, Martin"]
[Black "Putri, Regita Desyari"]
[WhiteFideId "24608033"]
[BlackFideId "7109083"]
[WhiteElo "2331"]
[BlackElo "1930"]
[Result "1-0"]
[Round "5"]
[TimeControl "180+2"]
[Date "2023.06.13"]
[WhiteClock "0:01:49"]
[BlackClock "0:00:00"]
[Board "147"]

1. d4 {[%clk 0:03:00]}  Nf6 {[%clk 0:02:59]} 2. c4 {[%clk 0:03:01]}  e6 {[%clk 0:02:58]} 3. Nc3 {[%clk 0:03:02]}  Bb4 {[%clk 0:02:58]} 4. Bd2 {[%clk 0:03:00]}  O-O {[%clk 0:02:57]} 5. Nf3 {[%clk 0:03:00]}  c5 {[%clk 0:02:58]} 6. dxc5 {[%clk 0:03:00]}  Bxc5 {[%clk 0:02:55]} 7. g3 {[%clk 0:03:00]}  b6 {[%clk 0:02:55]} 8. Bg2 {[%clk 0:03:00]}  Bb7 {[%clk 0:02:56]} 9. O-O {[%clk 0:03:01]}  h6 {[%clk 0:02:40]} 10. Qc2 {[%clk 0:03:01]}  Nc6 {[%clk 0:02:37]} 11. a3 {[%clk 0:02:59]}  a5 {[%clk 0:02:32]} 12. Rad1 {[%clk 0:02:59]}  Qe7 {[%clk 0:02:26]} 13. Na4 {[%clk 0:02:57]}  d6 {[%clk 0:01:49]} 14. e3 {[%clk 0:02:50]}  Rfd8 {[%clk 0:01:31]} 15. Bc3 {[%clk 0:02:49]}  Rac8 {[%clk 0:01:15]} 16. Rd2 {[%clk 0:02:45]}  d5 {[%clk 0:00:52]} 17. Nxc5 {[%clk 0:02:42]}  Qxc5 {[%clk 0:00:41]} 18. Bxf6 {[%clk 0:02:39]}  gxf6 {[%clk 0:00:42]} 19. cxd5 {[%clk 0:02:35]}  Qxc2 {[%clk 0:00:34]} 20. Rxc2 {[%clk 0:02:36]}  Rxd5 {[%clk 0:00:33]} 21. Rfc1 {[%clk 0:02:30]}  Rdd8 {[%clk 0:00:29]} 22. Ne1 {[%clk 0:02:05]}  Rd6 {[%clk 0:00:24]} 23. b4 {[%clk 0:02:01]}  axb4 {[%clk 0:00:21]} 24. axb4 {[%clk 0:02:02]}  b5 {[%clk 0:00:22]} 25. Rc5 {[%clk 0:01:57]}  Kg7 {[%clk 0:00:12]} 26. h4 {[%clk 0:01:57]}  Rc7 {[%clk 0:00:02]} 27. Rxb5 {[%clk 0:01:49]}  Rdd7 {[%clk 0:00:00]} 28. Rbc5 {[%clk 0:01:49]} 1-0


[Site "https://www.chess.com"]

[Event "Titled Tuesday Blitz June 13 Early 2023"]
[White "Lima, Kleyton Alcantara"]
[Black "Ciuffoletti, Paolo"]
[WhiteFideId "22718397"]
[BlackFideId "807630"]
[WhiteElo "2009"]
[BlackElo "2143"]
[Result "0-1"]
[Round "5"]
[TimeControl "180+2"]
[Date "2023.06.13"]
[WhiteClock "0:01:30"]
[BlackClock "0:00:16"]
[Board "150"]

1. d4 {[%clk 0:03:00]}  d5 {[%clk 0:02:59]} 2. c4 {[%clk 0:03:00]}  c6 {[%clk 0:02:59]} 3. Nf3 {[%clk 0:03:00]}  Nf6 {[%clk 0:02:58]} 4. e3 {[%clk 0:03:01]}  Bf5 {[%clk 0:02:57]} 5. Nc3 {[%clk 0:02:56]}  e6 {[%clk 0:02:56]} 6. Nh4 {[%clk 0:02:56]}  Bg6 {[%clk 0:02:56]} 7. Be2 {[%clk 0:02:47]}  Ne4 {[%clk 0:02:48]} 8. Nxg6 {[%clk 0:02:45]}  Nxc3 {[%clk 0:02:46]} 9. bxc3 {[%clk 0:02:45]}  hxg6 {[%clk 0:02:45]} 10. cxd5 {[%clk 0:02:43]}  exd5 {[%clk 0:02:31]} 11. O-O {[%clk 0:02:42]}  Bd6 {[%clk 0:02:16]} 12. g3 {[%clk 0:02:41]}  Nd7 {[%clk 0:01:50]} 13. c4 {[%clk 0:02:40]}  Nf6 {[%clk 0:01:48]} 14. cxd5 {[%clk 0:02:40]}  cxd5 {[%clk 0:01:42]} 15. Bb5+ {[%clk 0:02:37]}  Kf8 {[%clk 0:01:36]} 16. a4 {[%clk 0:02:20]}  Qc8 {[%clk 0:01:34]} 17. Ba3 {[%clk 0:02:19]}  Bxa3 {[%clk 0:01:32]} 18. Rxa3 {[%clk 0:02:20]}  Qh3 {[%clk 0:01:29]} 19. Re1 {[%clk 0:02:12]}  Qxh2+ {[%clk 0:01:19]} 20. Kf1 {[%clk 0:02:13]}  Ne4 {[%clk 0:01:19]} 21. Ra2 {[%clk 0:01:41]}  Nxg3+ {[%clk 0:01:16]} 22. fxg3 {[%clk 0:01:42]}  Qxa2 {[%clk 0:01:16]} 23. Re2 {[%clk 0:01:43]}  Rh1+ {[%clk 0:01:05]} 24. Kg2 {[%clk 0:01:43]}  Rxd1 {[%clk 0:01:01]} 25. Rxa2 {[%clk 0:01:42]}  Rc8 {[%clk 0:00:58]} 26. a5 {[%clk 0:01:40]}  Rc3 {[%clk 0:00:54]} 27. Re2 {[%clk 0:01:39]}  Rdc1 {[%clk 0:00:44]} 28. Kf3 {[%clk 0:01:36]}  R3c2 {[%clk 0:00:43]} 29. a6 {[%clk 0:01:36]}  bxa6 {[%clk 0:00:41]} 30. Bxa6 {[%clk 0:01:37]}  Rxe2 {[%clk 0:00:40]} 31. Kxe2 {[%clk 0:01:37]}  Ra1 {[%clk 0:00:38]} 32. Bb7 {[%clk 0:01:37]}  Ra5 {[%clk 0:00:37]} 33. Kd3 {[%clk 0:01:37]}  Ke7 {[%clk 0:00:37]} 34. Kc3 {[%clk 0:01:37]}  Kd6 {[%clk 0:00:37]} 35. Kb4 {[%clk 0:01:37]}  Ra1 {[%clk 0:00:36]} 36. Kc3 {[%clk 0:01:34]}  a5 {[%clk 0:00:34]} 37. e4 {[%clk 0:01:33]}  Ra3+ {[%clk 0:00:30]} 38. Kb2 {[%clk 0:01:32]}  Rxg3 {[%clk 0:00:29]} 39. Bxd5 {[%clk 0:01:33]}  f5 {[%clk 0:00:25]} 40. Bb7 {[%clk 0:01:30]}  fxe4 {[%clk 0:00:22]} 41. Bxe4 {[%clk 0:01:31]}  Rg4 {[%clk 0:00:21]} 42. Bc2 {[%clk 0:01:31]}  Rxd4 {[%clk 0:00:21]} 43. Bxg6 {[%clk 0:01:32]}  Rg4 {[%clk 0:00:17]} 44. Bf5 {[%clk 0:01:30]}  Rg3 {[%clk 0:00:17]} 45. Ka2 {[%clk 0:01:30]}  g5 {[%clk 0:00:17]} 46. Kb2 {[%clk 0:01:30]}  g4 {[%clk 0:00:16]} 47. Kc2 {[%clk 0:01:30]} 0-1


[Site "https://www.chess.com"]

[Event "Titled Tuesday Blitz June 13 Early 2023"]
[White "Bashirli, Saadat"]
[Black "Sanchez, Robert"]
[WhiteFideId "13429990"]
[BlackFideId "2034360"]
[WhiteElo "1408"]
[BlackElo "1911"]
[Result "1-0"]
[Round "5"]
[TimeControl "180+2"]
[Date "2023.06.13"]
[WhiteClock "0:00:26"]
[BlackClock "0:00:06"]
[Board "152"]

1. d4 {[%clk 0:03:00]}  Nf6 {[%clk 0:02:59]} 2. e3 {[%clk 0:03:01]}  d5 {[%clk 0:02:56]} 3. f4 {[%clk 0:02:59]}  b6 {[%clk 0:02:55]} 4. Bd3 {[%clk 0:02:58]}  Ba6 {[%clk 0:02:55]} 5. Nf3 {[%clk 0:02:55]}  Bxd3 {[%clk 0:02:54]} 6. cxd3 {[%clk 0:02:56]}  e6 {[%clk 0:02:54]} 7. Nc3 {[%clk 0:02:56]}  Be7 {[%clk 0:02:55]} 8. O-O {[%clk 0:02:56]}  O-O {[%clk 0:02:55]} 9. e4 {[%clk 0:02:56]}  dxe4 {[%clk 0:02:52]} 10. dxe4 {[%clk 0:02:56]}  c5 {[%clk 0:02:49]} 11. d5 {[%clk 0:02:52]}  exd5 {[%clk 0:02:47]} 12. exd5 {[%clk 0:02:49]}  a6 {[%clk 0:02:40]} 13. a4 {[%clk 0:02:37]}  Re8 {[%clk 0:02:37]} 14. Ne5 {[%clk 0:02:28]}  Bd6 {[%clk 0:02:36]} 15. Nc4 {[%clk 0:02:27]}  Qc7 {[%clk 0:02:30]} 16. Qf3 {[%clk 0:02:15]}  Nbd7 {[%clk 0:02:30]} 17. b3 {[%clk 0:02:12]}  Rab8 {[%clk 0:02:22]} 18. Ne3 {[%clk 0:01:53]}  b5 {[%clk 0:02:18]} 19. axb5 {[%clk 0:01:52]}  axb5 {[%clk 0:02:19]} 20. Nf5 {[%clk 0:01:52]}  b4 {[%clk 0:02:14]} 21. Qg3 {[%clk 0:01:40]}  g6 {[%clk 0:02:10]} 22. Nd1 {[%clk 0:01:26]}  Nb6 {[%clk 0:01:48]} 23. Bb2 {[%clk 0:01:21]}  Nbxd5 {[%clk 0:01:43]} 24. Qg5 {[%clk 0:01:17]}  Be7 {[%clk 0:01:33]} 25. Re1 {[%clk 0:01:05]}  Rb6 {[%clk 0:01:00]} 26. Be5 {[%clk 0:00:56]}  Qd7 {[%clk 0:00:34]} 27. Nh6+ {[%clk 0:00:49]}  Kf8 {[%clk 0:00:27]} 28. Nf2 {[%clk 0:00:46]}  Ne4 {[%clk 0:00:15]} 29. Qg4 {[%clk 0:00:41]}  Qxg4 {[%clk 0:00:15]} 30. Nfxg4 {[%clk 0:00:39]}  f5 {[%clk 0:00:15]} 31. Ra7 {[%clk 0:00:34]}  Nec3 {[%clk 0:00:08]} 32. Nf2 {[%clk 0:00:28]}  Bf6 {[%clk 0:00:06]} 33. Rf7# {[%clk 0:00:26]} 1-0


[Site "https://www.chess.com"]

[Event "Titled Tuesday Blitz June 13 Early 2023"]
[White "Chuemsakul, Sarocha"]
[Black "Stoyanov, Tsvetan"]
[WhiteFideId "6203710"]
[BlackFideId "2917173"]
[WhiteElo "1686"]
[BlackElo "2349"]
[Result "1/2-1/2"]
[Round "5"]
[TimeControl "180+2"]
[Date "2023.06.13"]
[WhiteClock "0:00:05"]
[BlackClock "0:00:03"]
[Board "153"]

1. d4 {[%clk 0:02:57]}  d5 {[%clk 0:02:58]} 2. c4 {[%clk 0:02:56]}  e5 {[%clk 0:02:59]} 3. dxe5 {[%clk 0:02:52]}  d4 {[%clk 0:03:00]} 4. Nf3 {[%clk 0:02:52]}  Nc6 {[%clk 0:03:00]} 5. a3 {[%clk 0:02:52]}  Nge7 {[%clk 0:03:01]} 6. e3 {[%clk 0:02:51]}  Bg4 {[%clk 0:03:00]} 7. Be2 {[%clk 0:02:49]}  dxe3 {[%clk 0:02:58]} 8. Bxe3 {[%clk 0:02:48]}  Qxd1+ {[%clk 0:02:58]} 9. Bxd1 {[%clk 0:02:48]}  Ng6 {[%clk 0:02:58]} 10. h3 {[%clk 0:02:47]}  Bxf3 {[%clk 0:02:58]} 11. Bxf3 {[%clk 0:02:48]}  Ngxe5 {[%clk 0:02:56]} 12. Be2 {[%clk 0:02:48]}  O-O-O {[%clk 0:02:53]} 13. Nd2 {[%clk 0:02:36]}  Nd4 {[%clk 0:02:45]} 14. Rc1 {[%clk 0:02:36]}  Bc5 {[%clk 0:02:21]} 15. b4 {[%clk 0:02:35]}  Nxe2 {[%clk 0:02:14]} 16. Kxe2 {[%clk 0:02:36]}  Bxe3 {[%clk 0:02:14]} 17. fxe3 {[%clk 0:02:34]}  Rhe8 {[%clk 0:02:14]} 18. Rc3 {[%clk 0:02:34]}  Ng6 {[%clk 0:02:04]} 19. Nf3 {[%clk 0:02:32]}  Nf4+ {[%clk 0:01:57]} 20. Kf2 {[%clk 0:02:31]}  Nd3+ {[%clk 0:01:57]} 21. Ke2 {[%clk 0:02:29]}  Ne5 {[%clk 0:01:52]} 22. Nxe5 {[%clk 0:02:29]}  Rxe5 {[%clk 0:01:53]} 23. Rf1 {[%clk 0:02:28]}  f6 {[%clk 0:01:53]} 24. Rd3 {[%clk 0:02:26]}  Rde8 {[%clk 0:01:52]} 25. Rf4 {[%clk 0:02:23]}  c6 {[%clk 0:01:49]} 26. Rfd4 {[%clk 0:02:18]}  R5e7 {[%clk 0:01:48]} 27. c5 {[%clk 0:02:15]}  Kc7 {[%clk 0:01:48]} 28. Kf3 {[%clk 0:02:14]}  b6 {[%clk 0:01:48]} 29. Rc4 {[%clk 0:02:06]}  Re5 {[%clk 0:01:41]} 30. cxb6+ {[%clk 0:01:35]}  axb6 {[%clk 0:01:42]} 31. Rcd4 {[%clk 0:01:23]}  R8e7 {[%clk 0:01:41]} 32. g4 {[%clk 0:01:22]}  c5 {[%clk 0:01:38]} 33. Rc4 {[%clk 0:01:17]}  Kb7 {[%clk 0:01:15]} 34. bxc5 {[%clk 0:01:17]}  bxc5 {[%clk 0:01:14]} 35. Ra4 {[%clk 0:00:57]}  R5e6 {[%clk 0:01:08]} 36. Rb3+ {[%clk 0:00:54]}  Rb6 {[%clk 0:01:07]} 37. Rc3 {[%clk 0:00:55]}  Kc6 {[%clk 0:01:04]} 38. Ra5 {[%clk 0:00:54]}  Re5 {[%clk 0:01:00]} 39. Ra7 {[%clk 0:00:54]}  Rb7 {[%clk 0:00:59]} 40. Ra6+ {[%clk 0:00:53]}  Kb5 {[%clk 0:00:40]} 41. Ra8 {[%clk 0:00:50]}  Rc7 {[%clk 0:00:33]} 42. Rb8+ {[%clk 0:00:48]}  Kc6 {[%clk 0:00:28]} 43. Rcb3 {[%clk 0:00:40]}  c4 {[%clk 0:00:24]} 44. Rc3 {[%clk 0:00:41]}  Kd6 {[%clk 0:00:15]} 45. Rb4 {[%clk 0:00:40]}  Rec5 {[%clk 0:00:15]} 46. a4 {[%clk 0:00:38]}  Ke5 {[%clk 0:00:13]} 47. h4 {[%clk 0:00:19]}  Kd5 {[%clk 0:00:13]} 48. h5 {[%clk 0:00:19]}  Ra7 {[%clk 0:00:10]} 49. Kf4 {[%clk 0:00:17]}  Re7 {[%clk 0:00:10]} 50. Kf3 {[%clk 0:00:15]}  f5 {[%clk 0:00:05]} 51. g5 {[%clk 0:00:07]}  Rec7 {[%clk 0:00:04]} 52. Kf4 {[%clk 0:00:06]}  g6 {[%clk 0:00:04]} 53. hxg6 {[%clk 0:00:07]}  hxg6 {[%clk 0:00:05]} 54. Rb6 {[%clk 0:00:07]}  R7c6 {[%clk 0:00:05]} 55. Rb8 {[%clk 0:00:05]}  Re6 {[%clk 0:00:05]} 56. Rd8+ {[%clk 0:00:05]}  Kc6 {[%clk 0:00:05]} 57. Rg8 {[%clk 0:00:04]}  Re4+ {[%clk 0:00:04]} 58. Kf3 {[%clk 0:00:05]}  Re6 {[%clk 0:00:05]} 59. Kf4 {[%clk 0:00:05]}  Kd5 {[%clk 0:00:03]} 60. Rd8+ {[%clk 0:00:05]}  Rd6 {[%clk 0:00:03]} 61. Rf8 {[%clk 0:00:05]}  Re6 {[%clk 0:00:03]} 62. Rd8+ {[%clk 0:00:05]} 1/2-1/2


[Site "https://www.chess.com"]

[Event "Titled Tuesday Blitz June 13 Early 2023"]
[White "Itgelt, Khuyagtsogt"]
[Black "Slavin, Alexey"]
[WhiteFideId "4902912"]
[BlackFideId "24104388"]
[WhiteElo "2227"]
[BlackElo "2264"]
[Result "1-0"]
[Round "5"]
[TimeControl "180+2"]
[Date "2023.06.13"]
[WhiteClock "0:01:10"]
[BlackClock "0:00:40"]
[Board "154"]

1. b3 {[%clk 0:02:59]}  Nf6 {[%clk 0:02:58]} 2. Bb2 {[%clk 0:03:00]}  Nc6 {[%clk 0:02:58]} 3. Nf3 {[%clk 0:03:01]}  d6 {[%clk 0:02:58]} 4. d4 {[%clk 0:02:56]}  Bg4 {[%clk 0:02:58]} 5. d5 {[%clk 0:02:56]}  Nb8 {[%clk 0:02:51]} 6. Nd4 {[%clk 0:02:55]}  c6 {[%clk 0:02:45]} 7. h3 {[%clk 0:02:50]}  Bd7 {[%clk 0:02:40]} 8. dxc6 {[%clk 0:02:48]}  Nxc6 {[%clk 0:02:39]} 9. e3 {[%clk 0:02:47]}  Nxd4 {[%clk 0:02:32]} 10. Qxd4 {[%clk 0:02:40]}  g6 {[%clk 0:02:29]} 11. Be2 {[%clk 0:02:36]}  Bg7 {[%clk 0:02:29]} 12. Qd1 {[%clk 0:02:33]}  O-O {[%clk 0:02:29]} 13. O-O {[%clk 0:02:33]}  Rc8 {[%clk 0:02:27]} 14. c4 {[%clk 0:02:33]}  a6 {[%clk 0:02:27]} 15. Nd2 {[%clk 0:02:23]}  Bc6 {[%clk 0:02:16]} 16. a4 {[%clk 0:02:18]}  Ne4 {[%clk 0:02:07]} 17. Bxg7 {[%clk 0:02:12]}  Nxd2 {[%clk 0:02:02]} 18. Bxf8 {[%clk 0:02:07]}  Nxf1 {[%clk 0:02:02]} 19. Bxe7 {[%clk 0:02:06]}  Nxe3 {[%clk 0:01:47]} 20. Bxd8 {[%clk 0:01:56]}  Nxd1 {[%clk 0:01:45]} 21. Bf6 {[%clk 0:01:57]}  Nxf2 {[%clk 0:01:37]} 22. Kxf2 {[%clk 0:01:58]}  Re8 {[%clk 0:01:35]} 23. Bf3 {[%clk 0:01:47]}  Re6 {[%clk 0:01:35]} 24. Bc3 {[%clk 0:01:43]}  f5 {[%clk 0:01:33]} 25. b4 {[%clk 0:01:41]}  g5 {[%clk 0:01:31]} 26. b5 {[%clk 0:01:40]}  axb5 {[%clk 0:01:31]} 27. axb5 {[%clk 0:01:41]}  Bxf3 {[%clk 0:01:29]} 28. gxf3 {[%clk 0:01:41]}  Kf7 {[%clk 0:01:22]} 29. Ra7 {[%clk 0:01:40]}  Re7 {[%clk 0:01:21]} 30. Bb4 {[%clk 0:01:37]}  Ke6 {[%clk 0:01:21]} 31. Ra2 {[%clk 0:01:34]}  Rc7 {[%clk 0:01:20]} 32. Rc2 {[%clk 0:01:27]}  h5 {[%clk 0:01:17]} 33. Ke3 {[%clk 0:01:27]}  Ke5 {[%clk 0:01:10]} 34. Bc3+ {[%clk 0:01:24]}  Ke6 {[%clk 0:01:10]} 35. Kd4 {[%clk 0:01:24]}  f4 {[%clk 0:00:57]} 36. Bb4 {[%clk 0:01:16]}  b6 {[%clk 0:00:49]} 37. Re2+ {[%clk 0:01:15]}  Kf5 {[%clk 0:00:47]} 38. Bxd6 {[%clk 0:01:14]}  Rd7 {[%clk 0:00:46]} 39. Kd5 {[%clk 0:01:12]}  g4 {[%clk 0:00:46]} 40. hxg4+ {[%clk 0:01:12]}  hxg4 {[%clk 0:00:46]} 41. Re5+ {[%clk 0:01:10]}  Kf6 {[%clk 0:00:40]} 42. fxg4 {[%clk 0:01:10]} 1-0


[Site "https://www.chess.com"]